bitfinex/quotes_BTCUSD_20240815
["timestamp","ask_amount","ask_price","bid_price","bid_amount"]
[1723747159123,0.08577727,57855.0,57844.0,0.00821]
[1723747159340,0.19455454,57857.0,57844.0,0.00821]
[1723747159341,0.57577685,57854.0,57844.0,0.00821]
[1723747159563,0.08577727,57853.0,57844.0,0.00821]
[1723747159809,0.17587702,57852.0,57844.0,0.00821]
[1723747160053,0.227158,57851.0,57844.0,0.00821]
[1723747160309,0.518626,57845.0,57844.0,0.00821]
[1723747160574,0.75822954,57845.0,57844.0,0.00821]
[1723747160804,0.58535454,57845.0,57844.0,0.00821]
[1723747161051,0.67846279,57845.0,57844.0,0.00821]
[1723747161294,0.85133779,57845.0,57844.0,0.00821]
[1723747161473,0.67846279,57845.0,57840.0,0.00821]
[1723747161602,0.73524154,57841.0,57840.0,0.00821]
[1723747161808,1.52323659,57841.0,57840.0,0.00821]
[1723747162010,0.58535454,57841.0,57840.0,0.00821]
[1723747162434,0.56235454,57841.0,57840.0,0.00821]
[1723747162636,0.58535454,57841.0,57840.0,0.00821]
[1723747162940,0.56235454,57841.0,57840.0,0.00821]
[1723747163367,0.17755454,57841.0,57840.0,0.00821]
[1723747163573,0.011,57841.0,57840.0,0.00821]
[1723747163772,0.006,57841.0,57840.0,1.437862]
[1723747163977,0.51898557,57853.0,57840.0,0.67341]
[1723747164238,0.013,57841.0,57840.0,0.57341]
[1723747164429,0.001,57841.0,57840.0,0.29541]
[1723747164648,0.001,57841.0,57840.0,0.814081]
[1723747164871,0.001,57841.0,57840.0,0.4683]
[1723747165033,0.001,57841.0,57840.0,0.29541]
[1723747165379,0.001,57841.0,57840.0,0.814081]
[1723747165602,0.3908,57857.0,57840.0,0.29541]
[1723747165775,0.002,57841.0,57840.0,0.29541]
[1723747166151,0.001,57841.0,57840.0,0.4683]
[1723747166350,0.17155454,57856.0,57842.0,0.172883]
[1723747166564,0.17155454,57856.0,57841.0,0.172886]
[1723747166719,0.17155454,57856.0,57840.0,0.29541]
[1723747166720,0.17155454,57856.0,57842.0,0.172884]
[1723747166915,0.3908,57857.0,57847.0,0.172868]
[1723747167117,0.3908,57870.0,57859.0,0.172833]
[1723747167365,0.3908,57870.0,57856.0,0.691364]
[1723747167366,0.3908,57870.0,57860.0,0.17283]
[1723747167569,0.3908,57870.0,57850.0,0.5652]
[1723747167570,0.007,57856.0,57850.0,0.5652]
[1723747167720,0.007,57856.0,57851.0,0.1]
[1723747167965,0.007,57856.0,57850.0,0.1872]
[1723747167966,0.3821,57856.0,57850.0,0.1872]
[1723747168333,0.3821,57856.0,57842.0,0.3795]
[1723747168334,0.55365454,57856.0,57843.0,0.51466362]
[1723747168628,0.3821,57856.0,57842.0,0.1892]
[1723747168931,0.17587642,57855.0,57842.0,0.1892]
[1723747169183,0.17587642,57855.0,57843.0,0.172881]
[1723747169184,0.17155454,57855.0,57843.0,0.172881]
[1723747169382,0.41631,57856.0,57842.0,0.1892]
[1723747169383,0.3751,57856.0,57842.0,0.1892]
[1723747169508,0.3751,57856.0,57846.0,0.172871]
[1723747169712,0.3751,57856.0,57843.0,0.1]
[1723747169713,0.3761,57856.0,57843.0,0.1]
[1723747169919,0.3761,57856.0,57844.0,0.172876]
[1723747170122,0.3761,57856.0,57845.0,0.1]
[1723747170323,0.3811,57856.0,57845.0,0.1]
[1723747170550,0.3821,57856.0,57845.0,0.1]
[1723747170747,0.3761,57856.0,57845.0,0.1]
[1723747170949,0.3761,57856.0,57845.0,0.272875]
[1723747171399,0.3761,57856.0,57847.0,0.172869]
[1723747171798,0.3761,57856.0,57845.0,0.1]
[1723747172017,0.3751,57856.0,57845.0,0.172875]
[1723747172177,0.3821,57856.0,57845.0,0.172875]
[1723747172385,0.3821,57856.0,57843.0,0.27288]
[1723747172577,0.29986349,57855.0,57843.0,0.1]
[1723747172783,0.29986349,57855.0,57842.0,0.1892]
[1723747172784,0.08577727,57848.0,57842.0,0.1892]
[1723747172990,0.08577727,57848.0,57840.0,0.00821]
[1723747172991,0.17587694,57847.0,57840.0,0.00821]
[1723747173206,0.64323181,57846.0,57840.0,0.00821]
[1723747173408,0.00432267,57845.0,57840.0,0.00821]
[1723747173610,0.17155454,57844.0,57840.0,0.00821]
[1723747173947,0.00432267,57843.0,57840.0,0.00821]
[1723747174153,0.17155454,57844.0,57840.0,0.00821]
[1723747174154,0.17155454,57844.0,57842.0,0.003]
[1723747174361,0.0543,57853.0,57842.0,0.003]
[1723747174570,0.54735454,57852.0,57842.0,0.003]
[1723747174778,0.17155454,57852.0,57842.0,0.003]
[1723747175153,0.3758,57858.0,57845.0,0.172875]
[1723747175356,0.3758,57858.0,57843.0,0.345762]
[1723747175357,0.001,57846.0,57844.0,0.172878]
[1723747175579,0.001,57846.0,57840.0,0.11021]
[1723747175580,0.001,57845.0,57842.0,0.172883]
[1723747175782,0.3758,57858.0,57843.0,0.1]
[1723747175990,0.3758,57858.0,57840.0,0.27976454]
[1723747175991,0.54735454,57858.0,57840.0,0.27976454]
[1723747176193,0.01,57852.0,57845.0,0.172875]
[1723747176347,0.01,57852.0,57840.0,0.27976454]
[1723747176348,0.01,57852.0,57849.0,0.172862]
[1723747176549,0.3758,57858.0,57848.0,0.172865]
[1723747176760,0.3758,57858.0,57841.0,0.17155454]
[1723747176761,0.3758,57858.0,57843.0,0.345757]
[1723747176959,0.3848,57858.0,57845.0,0.172874]
[1723747177158,0.3848,57858.0,57846.0,0.1]
[1723747177159,0.26165345,57857.0,57846.0,0.1]
[1723747177361,0.26165345,57857.0,57840.0,0.00821]
[1723747177562,0.3889,57850.0,57840.0,0.00821]
[1723747177791,0.023,57856.0,57840.0,0.00821]
[1723747178036,0.009,57858.0,57851.0,0.172856]
[1723747178203,0.009,57858.0,57854.0,0.172847]
[1723747178402,0.009,57858.0,57850.0,0.08577727]
[1723747178403,0.009,57858.0,57857.0,0.518518]
[1723747178603,0.3889,57872.0,57857.0,0.518518]
[1723747178604,0.3889,57872.0,57864.0,0.172818]
[1723747178804,0.38980421,57881.0,57866.0,0.5923]
[1723747179179,0.38980421,57881.0,57871.0,0.08577727]
[1723747179180,0.00090421,57881.0,57871.0,0.08577727]
[1723747179401,0.00090421,57881.0,57877.0,0.17278]
[1723747179608,0.00090421,57881.0,57871.0,0.08577727]
[1723747179609,0.00090421,57881.0,57876.0,0.172782]
[1723747179804,0.00090421,57881.0,57872.0,0.747185]
[1723747180021,0.00090421,57881.0,57873.0,0.1]
[1723747180228,0.01090421,57881.0,57876.0,0.172781]
[1723747180652,0.01090421,57881.0,57873.0,0.1]
[1723747180872,0.01090421,57881.0,57876.0,0.172782]
[1723747181027,0.01090421,57881.0,57873.0,0.1]
[1723747181227,0.01090421,57881.0,57874.0,0.172786]
[1723747181428,0.00390421,57881.0,57878.0,0.172774]
[1723747181812,0.00490421,57881.0,57876.0,0.005]
[1723747182004,0.00190421,57881.0,57876.0,0.005]
[1723747182226,0.00190421,57881.0,57874.0,0.172788]
[1723747182227,0.00090421,57881.0,57875.0,0.1]
[1723747182383,0.00090421,57881.0,57874.0,0.005]
[1723747182384,0.00190421,57881.0,57874.0,0.005]
[1723747182766,0.00190421,57881.0,57873.0,0.1]
[1723747182944,0.00190421,57881.0,57876.0,0.005]
[1723747182945,0.00290421,57881.0,57876.0,0.005]
[1723747183209,0.00290421,57881.0,57862.0,0.3979]
[1723747183210,0.08577727,57879.0,57862.0,0.3979]
[1723747183406,0.08577727,57879.0,57846.0,0.86040462]
[1723747183407,0.08577727,57873.0,57861.0,0.1961]
[1723747183608,0.00432054,57872.0,57861.0,0.1961]
[1723747183819,0.4108,57877.0,57861.0,0.1961]
[1723747183820,0.17155454,57876.0,57861.0,0.1961]
[1723747184032,0.25505877,57876.0,57861.0,0.1961]
[1723747184240,0.25857027,57873.0,57861.0,0.1961]
[1723747184444,0.1758753,57872.0,57861.0,0.1961]
[1723747184656,0.17155454,57872.0,57861.0,0.1961]
[1723747184860,0.4108,57877.0,57864.0,0.08577727]
[1723747185057,0.08577727,57890.0,57864.0,0.08577727]
[1723747185058,0.00090421,57881.0,57865.0,0.3979]
[1723747185310,0.01,57876.0,57871.0,0.08577727]
[1723747185523,0.01,57876.0,57875.0,0.172786]
[1723747185731,0.009,57879.0,57878.0,0.172777]
[1723747185942,0.00090421,57881.0,57875.0,0.3979]
[1723747186153,0.007,57877.0,57876.0,0.172783]
[1723747186365,0.007,57877.0,57876.0,0.518348]
[1723747186578,0.00090421,57881.0,57876.0,0.172783]
[1723747186783,0.00090421,57881.0,57875.0,0.74347]
[1723747186784,0.00090421,57881.0,57877.0,0.17278]
[1723747187015,0.001,57879.0,57878.0,0.78466281]
[1723747187214,0.001,57879.0,57878.0,0.28055454]
[1723747187416,0.001,57879.0,57878.0,0.45333154]
[1723747187617,0.001,57879.0,57878.0,0.109]
[1723747187852,0.00431912,57891.0,57878.0,0.109]
[1723747188276,0.08577727,57890.0,57875.0,0.3979]
[1723747188484,0.001,57881.0,57876.0,0.107]
[1723747188685,0.001,57881.0,57877.0,0.172778]
[1723747188889,0.001,57881.0,57876.0,0.279782]
[1723747189090,0.17087381,57891.0,57876.0,0.272782]
[1723747189388,0.17087381,57891.0,57878.0,0.001]
[1723747189604,0.4108,57893.0,57881.0,0.172767]
[1723747190028,0.4108,57893.0,57879.0,0.345547]
[1723747190029,0.4108,57893.0,57879.0,0.172771]
[1723747190234,0.001,57881.0,57876.0,0.45633554]
[1723747190654,0.001,57881.0,57877.0,0.172779]
[1723747190881,0.001,57881.0,57878.0,0.1]
[1723747191081,0.001,57881.0,57876.0,0.112]
[1723747191284,0.001,57881.0,57878.0,0.000822]
[1723747192092,0.08577727,57891.0,57878.0,0.000822]
[1723747192093,0.0900969,57891.0,57878.0,0.000822]
[1723747192317,0.00090421,57892.0,57879.0,0.3979]
[1723747192318,0.001,57881.0,57879.0,0.3979]
[1723747192515,0.001,57881.0,57880.0,0.172771]
[1723747192516,0.002,57881.0,57880.0,0.172771]
[1723747192721,0.002,57881.0,57879.0,0.3979]
[1723747192922,0.002,57881.0,57878.0,0.017822]
[1723747193125,0.17245875,57892.0,57878.0,0.000822]
[1723747193126,0.4108,57885.0,57878.0,0.000822]
[1723747193353,0.4108,57891.0,57878.0,0.274598]
[1723747193548,0.4108,57891.0,57878.0,0.001822]
[1723747193756,0.17245875,57892.0,57881.0,0.172768]
[1723747194122,0.00090421,57892.0,57885.0,0.08577727]
[1723747194361,0.00090421,57892.0,57891.0,0.172738]
[1723747194776,0.00090421,57892.0,57891.0,0.518214]
[1723747195102,0.00490421,57892.0,57889.0,0.172742]
[1723747195357,0.00490421,57892.0,57891.0,0.172738]
[1723747195569,0.00090421,57892.0,57889.0,0.172743]
[1723747195774,0.00090421,57892.0,57886.0,0.56945454]
[1723747195983,0.57565875,57892.0,57891.0,0.004]
[1723747196392,0.57665875,57892.0,57891.0,0.017]
[1723747196911,0.57565875,57892.0,57891.0,0.004]
[1723747197931,0.40410421,57892.0,57891.0,0.004]
[1723747198154,0.40410421,57892.0,57891.0,0.011]
[1723747198585,0.40510421,57892.0,57891.0,0.011]
[1723747198794,0.40410421,57892.0,57886.0,0.008]
[1723747199150,0.40310421,57892.0,57891.0,0.001]
[1723747199301,0.00090421,57892.0,57891.0,0.001]
[1723747199500,0.00490421,57892.0,57881.0,0.754735]
[1723747199730,0.00090421,57892.0,57882.0,0.172764]
[1723747199904,0.00090421,57892.0,57881.0,0.92628954]
[1723747199905,0.00090421,57892.0,57886.0,0.001]
[1723747200106,0.00431912,57891.0,57886.0,0.001]
[1723747200307,0.00490421,57892.0,57886.0,0.001]
[1723747201284,0.00490421,57892.0,57887.0,0.172748]
[1723747201438,0.00090421,57892.0,57886.0,0.4102]
[1723747201652,0.00090421,57892.0,57881.0,0.345532]
[1723747201653,0.00090421,57892.0,57881.0,0.172766]
[1723747201850,0.00490421,57892.0,57880.0,0.345542]
[1723747202071,0.00490421,57892.0,57883.0,0.345519]
[1723747202072,0.00090421,57892.0,57883.0,0.345519]
[1723747202251,0.00090421,57892.0,57884.0,0.272756]
[1723747202461,0.00090421,57892.0,57875.0,0.5778]
[1723747202462,0.08577727,57890.0,57875.0,0.5778]
[1723747202654,0.00490421,57892.0,57876.0,0.1]
[1723747202655,0.3944,57888.0,57876.0,0.1]
[1723747202853,0.3944,57888.0,57881.0,0.001]
[1723747203463,0.00431913,57887.0,57878.0,0.000822]
[1723747204217,0.61805454,57886.0,57878.0,0.000822]
[1723747204398,0.17707694,57885.0,57878.0,0.000822]
[1723747204605,0.4156,57883.0,57878.0,0.000822]
[1723747204807,0.17587458,57882.0,57878.0,0.000822]
[1723747205012,0.17587458,57882.0,57878.0,0.004822]
[1723747205214,0.08577727,57881.0,57878.0,0.006822]
[1723747205434,0.17587457,57880.0,57878.0,0.002822]
[1723747205643,0.17587457,57880.0,57878.0,0.000822]
[1723747205644,0.956922,57879.0,57878.0,0.000822]
[1723747205893,0.956922,57879.0,57878.0,0.007822]
[1723747205894,0.61015454,57879.0,57878.0,0.007822]
[1723747206092,0.61015454,57879.0,57878.0,0.006822]
[1723747206301,0.90445102,57879.0,57878.0,0.000822]
[1723747206507,0.78292854,57879.0,57878.0,0.003822]
[1723747206713,1.12847654,57879.0,57878.0,0.003822]
[1723747207137,1.12847654,57879.0,57878.0,0.012822]
[1723747207550,1.12847654,57879.0,57878.0,0.009822]
[1723747207967,1.13547654,57879.0,57878.0,0.010822]
[1723747208175,1.13547654,57879.0,57878.0,0.009822]
[1723747208376,0.61715454,57879.0,57878.0,0.009822]
[1723747208585,0.60515454,57879.0,57878.0,0.001822]
[1723747208787,0.61215454,57879.0,57878.0,0.002822]
[1723747209250,0.025,57879.0,57878.0,0.002822]
[1723747209486,0.00090421,57892.0,57878.0,0.195222]
[1723747209487,0.3817,57887.0,57878.0,0.195222]
[1723747209727,0.018,57879.0,57878.0,0.369997]
[1723747209930,0.018,57879.0,57878.0,0.197222]
[1723747210139,0.011,57879.0,57878.0,0.196222]
[1723747210344,0.011,57879.0,57878.0,0.197222]
[1723747210551,0.011,57879.0,57878.0,2.16969281]
[1723747210761,0.011,57879.0,57878.0,1.82413881]
[1723747210968,0.00090421,57892.0,57878.0,1.21903054]
[1723747211173,0.00090421,57892.0,57880.0,0.17277]
[1723747211389,0.00090421,57892.0,57881.0,0.1]
[1723747211591,0.00090421,57892.0,57879.0,0.272774]
[1723747211592,0.00090421,57892.0,57879.0,0.1]
[1723747211794,0.0043191,57891.0,57879.0,0.1]
[1723747212457,0.00090421,57892.0,57880.0,0.001]
[1723747212688,0.00090421,57892.0,57879.0,0.1]
[1723747212947,0.00090421,57892.0,57883.0,0.17276]
[1723747213192,0.00090421,57892.0,57879.0,0.106]
[1723747213452,0.00090421,57892.0,57879.0,0.001]
[1723747213453,0.08577727,57890.0,57879.0,0.001]
[1723747213692,0.17155454,57889.0,57880.0,0.005]
[1723747214048,0.4094,57891.0,57880.0,0.005]
[1723747214236,0.00090421,57892.0,57884.0,0.172758]
[1723747214430,0.00090421,57892.0,57887.0,0.1865]
[1723747214860,0.17245875,57892.0,57881.0,0.1]
[1723747215227,0.17245875,57892.0,57879.0,0.002]
[1723747215228,0.17587365,57891.0,57879.0,0.002]
[1723747215430,0.17587365,57891.0,57878.0,0.187322]
[1723747215431,0.00431942,57890.0,57880.0,0.000822]
[1723747215636,0.17155454,57889.0,57887.0,0.001]
[1723747216083,0.00090421,57892.0,57887.0,0.005]
[1723747216485,0.00090421,57892.0,57882.0,0.1]
[1723747216695,0.00090421,57892.0,57883.0,0.172761]
[1723747216901,0.00090421,57892.0,57882.0,0.1]
[1723747217131,0.00090421,57892.0,57886.0,0.172752]
[1723747217357,0.00790421,57892.0,57886.0,0.3917]
[1723747217564,0.00090421,57892.0,57890.0,0.00020794]
[1723747217999,0.55567388,57891.0,57890.0,0.00020794]
[1723747218205,1.15118788,57891.0,57890.0,0.00020794]
[1723747218412,0.60565454,57891.0,57890.0,0.00020794]
[1723747218846,0.77839254,57891.0,57890.0,0.00020794]
[1723747219060,1.49234454,57891.0,57890.0,0.00620794]
[1723747219273,1.96117374,57891.0,57890.0,0.00720794]
[1723747219488,1.96117374,57891.0,57880.0,0.000822]
[1723747219489,0.86384,57881.0,57880.0,0.000822]
[1723747219746,2.29009983,57881.0,57880.0,0.000822]
[1723747220158,2.33834313,57881.0,57880.0,0.000822]
[1723747220332,2.32848065,57881.0,57880.0,0.000822]
[1723747220543,2.38544467,57881.0,57880.0,0.000822]
[1723747220754,2.38460099,57881.0,57880.0,0.000822]
[1723747220942,2.3944639,57881.0,57880.0,0.000822]
[1723747221162,2.7699999,57881.0,57880.0,0.000822]
[1723747221359,2.7699999,57881.0,57878.0,0.000822]
[1723747221360,1.616118,57879.0,57878.0,0.000822]
[1723747221545,1.91638056,57879.0,57878.0,0.000822]
[1723747222304,2.33902856,57879.0,57878.0,0.000822]
[1723747222536,0.4067,57855.0,57846.0,0.51466362]
[1723747222738,0.17587644,57854.0,57846.0,0.51466362]
[1723747223190,0.17587644,57854.0,57843.0,0.1908]
[1723747223617,0.4067,57865.0,57847.0,0.08577727]
[1723747223827,0.4067,57865.0,57843.0,0.36235454]
[1723747223828,0.172832,57860.0,57843.0,0.5679]
[1723747224025,0.4067,57859.0,57844.0,0.18577727]
[1723747224432,0.004,57854.0,57845.0,0.172875]
[1723747224765,0.4067,57859.0,57844.0,0.18577727]
[1723747224766,0.001,57855.0,57844.0,0.18577727]
[1723747225143,0.4067,57859.0,57844.0,0.1]
[1723747225371,0.17155454,57858.0,57844.0,0.1]
[1723747225576,0.05782545,57857.0,57844.0,0.1]
[1723747225777,0.1758764,57856.0,57844.0,0.1]
[1723747226593,0.1758764,57856.0,57843.0,0.5679]
[1723747226728,0.345708,57853.0,57837.0,0.5803]
[1723747226931,0.4465,57855.0,57844.0,0.000822]
[1723747226932,0.44554148,57852.0,57844.0,0.000822]
[1723747227133,0.023,57851.0,57844.0,0.000822]
[1723747227343,0.172864,57849.0,57844.0,0.000822]
[1723747227540,0.34874611,57848.0,57844.0,0.000822]
[1723747227743,0.4002,57847.0,57844.0,0.000822]
[1723747227969,0.172875,57845.0,57844.0,0.000822]
[1723747228319,0.172875,57845.0,57844.0,0.001822]
[1723747228320,1.04025433,57845.0,57844.0,0.001822]
[1723747228545,0.19455454,57845.0,57844.0,0.001822]
[1723747228747,0.17155454,57845.0,57844.0,0.000822]
[1723747229165,0.17587719,57845.0,57844.0,0.001822]
[1723747229596,0.17155454,57845.0,57844.0,0.001822]
[1723747229807,0.37175219,57845.0,57844.0,0.001822]
[1723747230014,1.09470319,57845.0,57844.0,0.001822]
[1723747230506,1.58675419,57845.0,57844.0,0.001822]
[1723747230712,0.62237719,57845.0,57844.0,0.001822]
[1723747230861,0.54875454,57845.0,57844.0,0.001822]
[1723747231065,0.54875454,57845.0,57844.0,0.000822]
[1723747231539,0.54875454,57845.0,57844.0,0.001822]
[1723747231540,0.54975454,57845.0,57844.0,0.001822]
[1723747231739,0.56375454,57845.0,57844.0,0.001822]
[1723747231939,0.54875454,57845.0,57844.0,0.000822]
[1723747232391,0.55275454,57845.0,57844.0,0.000822]
[1723747232606,0.17555454,57845.0,57844.0,0.000822]
[1723747232810,0.17155454,57845.0,57844.0,0.000822]
[1723747233018,0.76308499,57845.0,57844.0,0.000822]
[1723747233221,0.59220999,57845.0,57844.0,0.000822]
[1723747233424,0.60120999,57845.0,57844.0,0.000822]
[1723747233627,0.58405454,57845.0,57844.0,0.000822]
[1723747233829,0.57505454,57845.0,57844.0,0.000822]
[1723747234058,0.58205454,57845.0,57844.0,0.000822]
[1723747234407,0.57305454,57845.0,57844.0,0.000822]
[1723747234610,0.58205454,57845.0,57844.0,0.000822]
[1723747234923,0.64325999,57845.0,57844.0,0.000822]
[1723747235048,0.57605454,57845.0,57844.0,0.000822]
[1723747235284,0.009,57845.0,57844.0,0.000822]
[1723747235480,0.009,57845.0,57844.0,0.187022]
[1723747235689,0.013,57845.0,57844.0,0.8542]
[1723747235904,0.013,57845.0,57844.0,1.199957]
[1723747236095,0.013,57845.0,57844.0,2.07236048]
[1723747236096,0.009,57845.0,57844.0,2.07236048]
[1723747236334,0.51466362,57874.0,57854.0,0.758347]
[1723747236335,0.3901,57873.0,57854.0,0.758347]
[1723747236554,0.3901,57873.0,57854.0,0.5855]
[1723747236555,0.17155454,57872.0,57854.0,0.5855]
[1723747236834,0.17711893,57871.0,57854.0,0.5855]
[1723747239301,0.17155454,57870.0,57859.0,0.03]
[1723747239508,0.17155454,57870.0,57864.0,0.08577727]
[1723747239509,0.003,57870.0,57864.0,0.08577727]
[1723747239713,0.003,57870.0,57869.0,1.105512]
[1723747239934,0.003,57870.0,57869.0,1.37706654]
[1723747240158,0.3813,57891.0,57869.0,1.37706654]
[1723747240159,0.3813,57891.0,57870.0,0.1728]
[1723747240365,0.009,57870.0,57869.0,0.6871]
[1723747240578,0.009,57870.0,57869.0,1.72267454]
[1723747240776,0.009,57870.0,57869.0,1.73213179]
[1723747241001,0.011,57870.0,57869.0,2.07773979]
[1723747241204,0.51466362,57890.0,57879.0,0.172773]
[1723747241428,0.51466362,57890.0,57878.0,0.1964]
[1723747241429,0.51466362,57890.0,57878.0,0.369176]
[1723747241605,0.00431898,57889.0,57878.0,0.1964]
[1723747241817,0.17155454,57888.0,57878.0,0.1964]
[1723747242220,0.009,57891.0,57878.0,0.1964]
[1723747242522,0.01331905,57891.0,57878.0,0.1964]
[1723747242716,0.17155454,57890.0,57878.0,0.1964]
[1723747242867,0.00431917,57889.0,57878.0,0.1964]
[1723747243266,0.001,57888.0,57878.0,0.1964]
[1723747243494,0.00431917,57887.0,57878.0,0.1964]
[1723747244337,0.00431917,57887.0,57878.0,0.1974]
[1723747244738,0.00431917,57887.0,57878.0,0.1964]
[1723747244897,0.00431917,57887.0,57878.0,0.1974]
[1723747245095,0.08577727,57883.0,57878.0,0.001]
[1723747245339,0.08577727,57883.0,57852.0,0.08577727]
[1723747245340,0.3978,57881.0,57867.0,0.1956]
[1723747245677,0.3978,57874.0,57862.0,0.71026362]
[1723747245891,0.56935454,57874.0,57862.0,0.71026362]
[1723747246119,0.0043204,57873.0,57862.0,0.1956]
[1723747246328,0.01758749,57872.0,57862.0,0.1956]
[1723747246530,0.25855727,57877.0,57862.0,0.1956]
[1723747246531,0.17155454,57871.0,57862.0,0.1956]
[1723747246734,0.08577727,57869.0,57855.0,0.4017]
[1723747246955,0.57367553,57868.0,57855.0,0.5973]
[1723747247122,0.08577727,57863.0,57855.0,0.1956]
[1723747247328,0.00432116,57862.0,57855.0,0.1956]
[1723747248569,0.17155454,57861.0,57855.0,0.1956]
[1723747248768,0.02190894,57860.0,57850.0,0.1956]
[1723747248977,0.19346348,57860.0,57850.0,0.1956]
[1723747249183,0.17587591,57860.0,57850.0,0.1956]
[1723747249754,0.3978,57857.0,57850.0,0.1956]
[1723747249966,0.1758762,57856.0,57850.0,0.1956]
[1723747250604,0.1758762,57856.0,57844.0,0.196422]
[1723747250605,0.08577727,57854.0,57844.0,0.196422]
[1723747250805,0.17587658,57853.0,57850.0,0.002]
[1723747251019,0.3978,57852.0,57844.0,0.000822]
[1723747251141,0.17155454,57851.0,57844.0,0.000822]
[1723747251403,0.17155454,57851.0,57850.0,0.004]
[1723747251635,0.17155454,57851.0,57844.0,0.000822]
[1723747251853,0.17155454,57851.0,57850.0,0.001]
[1723747252464,0.17587672,57851.0,57844.0,0.000822]
[1723747252712,0.08577727,57850.0,57844.0,0.000822]
[1723747252926,0.17587704,57849.0,57844.0,0.000822]
[1723747253157,0.34442054,57849.0,57844.0,0.000822]
[1723747253359,0.0043225,57848.0,57844.0,0.000822]
[1723747253488,0.17155454,57847.0,57844.0,0.000822]
[1723747254147,0.03444155,57846.0,57844.0,0.000822]
[1723747254373,0.17155454,57845.0,57844.0,0.000822]
[1723747255253,0.17155454,57845.0,57844.0,0.003822]
[1723747255452,0.17155454,57845.0,57844.0,0.000822]
[1723747255878,0.34442954,57845.0,57844.0,0.004822]
[1723747256105,1.49097449,57845.0,57844.0,0.004822]
[1723747256541,0.80047249,57845.0,57844.0,0.004822]
[1723747256763,0.62759749,57845.0,57844.0,0.004822]
[1723747256968,0.57015454,57845.0,57844.0,0.004822]
[1723747257609,0.17255454,57845.0,57844.0,0.004822]
[1723747259362,0.001,57845.0,57844.0,0.004822]
[1723747259991,0.17255454,57845.0,57844.0,0.004822]
[1723747260206,0.57225454,57845.0,57844.0,0.004822]
[1723747260454,1.09088054,57845.0,57844.0,0.004822]
[1723747260661,1.86068254,57845.0,57844.0,0.004822]
[1723747260872,1.87007756,57845.0,57844.0,0.004822]
[1723747261523,1.87007756,57845.0,57844.0,1e-08]
[1723747261939,2.0416321,57845.0,57844.0,1e-08]
[1723747262145,1.6958811,57845.0,57844.0,1e-08]
[1723747262762,1.6948811,57845.0,57844.0,1e-08]
[1723747262963,1.7088811,57845.0,57844.0,0.00082301]
[1723747263407,1.2002551,57845.0,57840.0,0.00821]
[1723747263621,1.191998,57837.0,57836.0,0.000821]
[1723747263826,2.43394954,57837.0,57836.0,0.000821]
[1723747264032,2.52966426,57837.0,57836.0,0.000821]
[1723747264467,2.52394954,57837.0,57836.0,0.000821]
[1723747264673,2.69550408,57837.0,57836.0,0.000821]
[1723747265366,1.79005154,57837.0,57836.0,0.001821]
[1723747265578,1.79005154,57837.0,57836.0,0.000821]
[1723747265579,0.57795454,57837.0,57836.0,0.000821]
[1723747265790,1.65405154,57837.0,57836.0,0.000821]
[1723747265996,1.83245669,57837.0,57836.0,0.001821]
[1723747266199,1.84645669,57837.0,57836.0,0.001821]
[1723747266642,1.83245669,57837.0,57836.0,0.001821]
[1723747266905,1.85545669,57837.0,57836.0,0.001821]
[1723747267118,1.86945669,57837.0,57836.0,0.001821]
[1723747267326,0.76735969,57837.0,57836.0,0.000821]
[1723747267529,0.74435969,57837.0,57836.0,0.000821]
[1723747267739,0.92525869,57837.0,57836.0,0.001821]
[1723747267954,0.91725869,57837.0,57836.0,0.000821]
[1723747268160,0.92525869,57837.0,57836.0,0.001821]
[1723747268367,1.25705769,57837.0,57836.0,0.001821]
[1723747268574,1.24905769,57837.0,57836.0,0.000821]
[1723747268784,0.91725869,57837.0,57836.0,0.000821]
[1723747269207,0.56495454,57837.0,57836.0,0.000821]
[1723747269409,0.95475354,57837.0,57836.0,0.001821]
[1723747269621,1.12765254,57837.0,57836.0,0.001821]
[1723747269981,0.78185354,57837.0,57836.0,0.001821]
[1723747270187,0.17955454,57837.0,57836.0,0.184621]
[1723747270609,0.008,57837.0,57836.0,0.357523]
[1723747270812,0.008,57837.0,57836.0,0.184621]
[1723747271013,0.3809,57853.0,57836.0,0.183621]
[1723747271309,0.007,57837.0,57836.0,0.001821]
[1723747271534,0.1948778,57837.0,57836.0,0.001821]
[1723747271741,0.012,57837.0,57836.0,0.570621]
[1723747272089,0.0043229,57845.0,57836.0,0.673621]
[1723747272290,0.17155454,57846.0,57837.0,0.1]
[1723747272508,0.17155454,57846.0,57836.0,0.670621]
[1723747272509,0.1758769,57845.0,57836.0,0.570621]
[1723747272715,0.007,57837.0,57836.0,0.571621]
[1723747272930,0.1758769,57845.0,57836.0,0.571621]
[1723747272931,0.1758769,57845.0,57836.0,0.570621]
[1723747273134,0.17155454,57845.0,57836.0,0.572621]
[1723747273324,0.001,57837.0,57836.0,0.572621]
[1723747273530,0.001,57837.0,57836.0,0.58204991]
[1723747273886,0.001,57837.0,57836.0,1.10075691]
[1723747274306,0.001,57837.0,57836.0,1.44656191]
[1723747274551,0.004,57845.0,57844.0,0.193]
[1723747274737,0.00090421,57845.0,57844.0,0.5698]
[1723747275437,0.00090421,57845.0,57844.0,0.193]
[1723747275654,0.00090421,57845.0,57844.0,0.01]
[1723747275655,0.17345875,57845.0,57844.0,0.01]
[1723747275847,1.11423063,57845.0,57844.0,0.01]
[1723747276179,1.11423063,57845.0,57838.0,0.193]
[1723747276180,0.17245875,57845.0,57838.0,0.193]
[1723747276347,0.00090421,57845.0,57839.0,0.3768]
[1723747276671,0.00090421,57845.0,57844.0,0.5738]
[1723747277911,0.00090421,57845.0,57844.0,0.57930341]
[1723747278209,0.00490421,57845.0,57844.0,0.57930341]
[1723747278400,0.00090421,57845.0,57844.0,0.75218141]